Cogmind - Beta 13 @@@ ROGUE MODE // 2024.04.14 @ 22:19:08 Player: Nebula avali Result: Destroyed by Enhanced Grunt with Neutron Cannon Performance ------------- Evolutions (3) 1500 Regions Visited (9) 1800 Robots Destroyed (28) 140 Value Destroyed (775) 775 Prototype IDs (15) 300 Alien Tech Used (0) 0 Bonus (600) 600 TOTAL SCORE: 5115 Bonus ------- Aligned with FarCom 300 Met Data Miner 300 Cogmind --------- Core Integrity 0/700 Matter 210/300 Energy 24/100 System Corruption 1% Temperature Cool (41) Movement Core (50) Location -7/Data Miner Parts ------- > --- POWER (1) -------- (None) > --- PROPULSION (4) --- (None) > --- UTILITY (5) ------ Advanced Visual Processing Unit Improved Signal Interpreter > --- WEAPON (3) ------- (None) > --- INVENTORY (5) ---- Nuclear Core Aerolev Unit Gravmag System Combat Airjet Improved Field Recycling Unit (0) Peak State ------------ > --- POWER ------------ Light Nuclear Core > --- PROPULSION ------- Carbon-fiber Leg Potential Leg Potential Leg > --- UTILITY ---------- Huge Storage Unit Advanced Visual Processing Unit Improved Signal Interpreter Improved Light Armor Plating Improved Shield Generator > --- WEAPON ----------- Battle Rifle Flak Cannon Spear > --- INVENTORY -------- Nuclear Core Light Nuclear Core Aerolev Unit Aerolev Unit Aerolev Unit Aerolev Unit Aerolev Unit Aerolev Unit Gravmag System Combat Airjet Compact Battery Compact Matter Pod Advanced Visual Processing Unit Advanced Visual Processing Unit Experimental Sensor Array Improved Shield Generator Improved Field Recycling Unit Guided Plasma Cannon Improved Datajack Field Lobotomy Kit Plasma Cutter Proton Bomb Trap Proton Bomb Trap Proton Bomb Trap Proton Bomb Trap [Rating: 58] Favorites ----------- Power Light Nuclear Core Engine Light Deuterium Engine Power Core Light Nuclear Core Propulsion Potential Leg Treads Light Treads Leg Potential Leg Wheel Compact Wheel Hover Unit Aerolev Unit Flight Unit Nuclear Pulse Thruster Utility Huge Storage Unit Device Improved Shield Generator Storage Huge Storage Unit Processor Signal Interpreter Protection Improved Light Armor Plating Weapon Spear Energy Gun Medium Laser Energy Cannon Guided Plasma Cannon Ballistic Gun Battle Rifle Ballistic Cannon Flak Cannon Launcher Mini Grenade Launcher Special Weapon Field Lobotomy Kit Piercing Weapon Spear Special Melee Weapon Improved Datajack Build | -11 -10 -10 -10 -9 -8 -7 -7 -7 -7 ------- Run | Yrd Mat Min Exi Min Mat Fac Low Low Dat Slots Evolved 6 | . . . . . 4 2 . . . Power . | . . . . . . . . . . Propulsion 2 | . . . . . 2 . . . . Utility 3 | . . . . . 1 2 . . . Weapon 1 | . . . . . 1 . . . . Parts Attached 44 | 2 . 5 8 3 10 . 1 9 6 Power 5 | . . 2 . 1 1 . . 1 . Engine 2 | . . 1 . 1 . . . . . Core 3 | . . 1 . . 1 . . 1 . Reactor . | . . . . . . . . . . Propulsion 13 | 2 . . 4 . 4 . . 2 1 Treads 2 | 2 . . . . . . . . . Leg 7 | . . . 2 . 4 . . 1 . Wheel 2 | . . . 2 . . . . . . Hover 1 | . . . . . . . . 1 . Flight 1 | . . . . . . . . . 1 Utility 12 | . . 2 . 1 3 . . 5 1 Device 3 | . . 1 . . . . . 1 1 Storage 2 | . . . . 1 1 . . . . Processor 3 | . . 1 . . 1 . . 1 . Hackware . | . . . . . . . . . . Protection 4 | . . . . . 1 . . 3 . Artifact . | . . . . . . . . . . Weapon 14 | . . 1 4 1 2 . 1 1 4 Energy Gun . | . . . . . . . . . . Energy Cannon 4 | . . . 2 . . . . . 2 Ballistic Gun 3 | . . . 1 . . . 1 1 . Ballistic Cannon 2 | . . . . . 2 . . . . Launcher 1 | . . 1 . . . . . . . Special Weapon 2 | . . . 1 . . . . . 1 Impact Weapon . | . . . . . . . . . . Slashing Weapon . | . . . . . . . . . . Piercing Weapon 1 | . . . . 1 . . . . . Special Melee Weapon 1 | . . . . . . . . . 1 Unidentified Prototypes 4 | . . . 3 . . . . 1 . Parts Lost 17 | . . 1 . . 2 . . 3 11 Power 4 | . . 1 . . 1 . . 1 1 Propulsion 4 | . . . . . . . . 1 3 Utility 4 | . . . . . 1 . . . 3 Weapon 5 | . . . . . . . . 1 4 Highest Loss Streak 11 | . . 1 . . 2 . . 3 11 To Critical Strikes . | . . . . . . . . . . Average Slot Usage (%) 89 | . 85 94 98 100 84 84 84 84 82 Engine 6 | . 14 11 14 14 6 . . . . Core 3 | . . 2 . . 2 7 7 4 6 Treads 3 | . 28 28 4 . . . . . . Leg 22 | . . . 9 28 31 30 30 21 14 Device 2 | . . 9 . . . . . 4 6 Storage 10 | . 14 14 14 14 8 7 7 7 7 Processor 11 | . . . 14 14 10 15 15 15 15 Protection 3 | . . . . . 5 . . 6 6 Energy Gun 2 | . 28 18 1 . . . . . . Energy Cannon 4 | . . . 5 14 4 . . . 1 Ballistic Gun 2 | . . . 6 . . . 2 6 3 Ballistic Cannon 4 | . . . . . 5 15 11 7 6 Launcher 1 | . . 9 7 . . . . . . Special Weapon 2 | . . . 6 8 . . . . 1 Piercing Weapon 6 | . . . . 5 9 7 7 7 6 Naked Turns . | . . . . . . . . . . Heaviest Build 110 | 12 12 14 28 97 104 99 99 106 110 Greatest Support 90 | 40 40 40 60 60 90 90 90 90 45 Greatest Overweight (x) 6 | . . . . 1 1 1 1 6 3 Average Overweight (x) . | . . . . . . 1 1 1 1 Largest Inventory Capacity 25 | 8 8 8 8 25 25 25 25 25 25 Average Capacity 19 | 8 8 8 8 11 24 25 25 25 24 Most Carried 25 | 7 7 8 8 12 24 25 25 25 24 Average Carried 16 | 6 6 7 7 8 17 24 24 24 22 Final Capacity 25 | 8 8 8 8 25 25 25 25 25 5 Final Carried 25 | 6 7 8 8 12 24 25 25 23 5 Class Distribution -------------------- 75% | Mutant 24% | Derelict-Mutant Dominant Class ---------------- Mutant | -10/Materials Mutant | -10/Mines Mutant | -10/Exiles Mutant | -9/Mines Mutant | -8/Materials Mutant | -7/Factory Mutant | -7/Lower Caves Derelict-Mutant | -7/Lower Caves Derelict-Mutant | -7/Data Miner Resources | -11 -10 -10 -10 -9 -8 -7 -7 -7 -7 ----------- Run | Yrd Mat Min Exi Min Mat Fac Low Low Dat Matter Collected 844 | 220 . 105 . 120 252 . 25 122 . Remotely . | . . . . . . . . . . Salvage Created 886 | . 30 56 . 49 564 . 74 113 . Parts 49 | . 2 5 . 3 27 . 6 6 . Haulers Intercepted 2 | . . . . . 2 . . . . Recyclers Shooed 1 | . . . . . 1 . . . . Parts Field Recycled . | . . . . . . . . . . Retrieved Matter . | . . . . . . . . . . Parts Self-Destructed 12 | . . . . . . . 8 4 . Prevented . | . . . . . . . . . . Kills | -11 -10 -10 -10 -9 -8 -7 -7 -7 -7 ------- Run | Yrd Mat Min Exi Min Mat Fac Low Low Dat Combat Hostiles Destroyed 22 | . . 3 . 3 10 . 2 4 . Melee 13 | . . . . 2 8 . 2 1 . Guns 2 | . . . . . . . . 2 . Cannons 3 | . . . . . 2 . . 1 . AOE 3 | . . 3 . . . . . . . Classes Destroyed 10 | . 1 2 . 1 5 . . 1 . Worker 1 | . . . . . 1 . . . . Tunneler 1 | . . 1 . . . . . . . Hauler 2 | . . . . . 2 . . . . Recycler 1 | . . . . . 1 . . . . Watcher 1 | . 1 . . . . . . . . Swarmer 8 | . . . . 3 4 . 1 . . Grunt 10 | . . 3 . . 4 . 1 2 . Sentry 2 | . . . . . 1 . . 1 . Hunter 1 | . . . . . 1 . . . . Master Thief 1 | . . . . . . . . 1 . Best Kill Streak 3 | . 1 2 . 1 3 . 2 3 . Combat Bots Only 3 | . . 2 . 1 3 . 2 3 . Max Kills in Single Turn 1 | . 1 1 . 1 1 . 1 1 . Gunslinging . | . . . . . . . . . . Exploded 1 | . . 1 . . . . . . . Melee 1 | . . . . 1 1 . 1 1 . Uniques/NPCs Destroyed . | . . . . . . . . . . Combat | -11 -10 -10 -10 -9 -8 -7 -7 -7 -7 -------- Run | Yrd Mat Min Exi Min Mat Fac Low Low Dat Hostile Shots Fired 289 | . . 28 . 7 98 . 9 111 36 Missed 81 | . . 8 . 4 20 . 3 39 7 Damage Taken 3353 | . 20 297 . 21 1041 . 83 536 1355 Core 976 | . . 66 . 8 179 . . 59 664 Absorbed by Shields 105 | . . . . . . . . 61 44 Regen/Repaired (Parts) 260 | . . . . . 260 . . . . Core Remaining (%) 79 | 100 . . . 70 67 . . . . Volleys Fired 39 | . 2 11 . 5 6 . . 12 3 Largest 2 | . 2 2 . 1 2 . . 2 1 Hottest 120 | . 90 90 . 120 88 . . 69 120 Shots Fired 64 | . 4 21 . 5 7 . . 24 3 Gun 30 | . 4 14 . . . . . 12 . Cannon 26 | . . . . 5 7 . . 12 2 Launcher 7 | . . 7 . . . . . . . Special 1 | . . . . . . . . . 1 Kinetic 31 | . . . . . 7 . . 24 . Thermal 21 | . 2 11 . 5 . . . . 3 Explosive 7 | . . 7 . . . . . . . Electromagnetic 5 | . 2 3 . . . . . . . Robot Hit Streak 5 | . 1 5 . 2 5 . . 4 2 Robot Miss Streak 5 | . 2 2 . . 4 . . 5 1 Penetration Max . | . . . . . . . . . . Secondary Targets . | . . . . . . . . . . Shots Hit Robots 90 | . 2 9 . 5 40 . 2 25 7 Core Hits 50 | . 1 9 . 1 19 . 2 16 2 Critical Kills . | . . . . . . . . . . Critical Parts Destroyed . | . . . . . . . . . . Critical Strikes 5 | . . . . 1 4 . . . . Impale 5 | . . . . 1 4 . . . . Melee Attacks 88 | . . . . 10 55 . 4 8 11 Impact . | . . . . . . . . . . Slashing . | . . . . . . . . . . Piercing 87 | . . . . 10 55 . 4 8 10 Sneak Attacks 11 | . . . . 2 8 . . . 1 Combat Hostiles . | . . . . . . . . . . Follow-up Attacks . | . . . . . . . . . . Damage Inflicted 2792 | . 33 503 . 289 1269 . 55 493 150 Guns 287 | . 33 90 . . . . . 164 . Cannons 531 | . . . . 147 128 . . 209 47 Explosions 413 | . . 413 . . . . . . . Melee 1561 | . . . . 142 1141 . 55 120 103 Ramming . | . . . . . . . . . . Kinetic 501 | . . . . . 128 . . 373 . Thermal 269 | . 13 62 . 147 . . . . 47 Explosive 413 | . . 413 . . . . . . . Electromagnetic 48 | . 20 28 . . . . . . . Impact . | . . . . . . . . . . Slashing . | . . . . . . . . . . Piercing 1561 | . . . . 142 1141 . 55 120 103 Highest Corruption 1 | . . . . . . . . . 1 Average Corruption 1 | . . . . . . . . . 1 Corruption Purged . | . . . . . . . . . . Corruption Blocked . | . . . . . . . . . . Overload Shots . | . . . . . . . . . . Overflow Damage 232 | . . . . 67 165 . . . . Projectiles 27 | . . . . 27 . . . . . Explosions . | . . . . . . . . . . Melee 205 | . . . . 40 165 . . . . Knockbacks 4 | . . . . . 2 . . 2 . Impact . | . . . . . . . . . . Kinetic 4 | . . . . . 2 . . 2 . Secondary . | . . . . . . . . . . Self-Inflicted Damage 58 | . . 58 . . . . . . . Shots 2 | . . 2 . . . . . . . Rammed . | . . . . . . . . . . Targets Rammed . | . . . . . . . . . . Kicked . | . . . . . . . . . . Crushed . | . . . . . . . . . . Highest Temperature 294 | . 60 86 . 294 27 . 2 36 104 Average Temperature 55 | . 30 38 . 123 11 . 2 12 62 Received Heat Transfer 849 | . . 156 . . 459 . 45 189 . Siege Activations . | . . . . . . . . . . Robots Corrupted . | . . . . . . . . . . Combat Hostiles . | . . . . . . . . . . Parts Fried . | . . . . . . . . . . Impact Corruptions . | . . . . . . . . . . Robots Melted 1 | . . . . 1 . . . . . Combat Hostiles 1 | . . . . 1 . . . . . Parts Melted . | . . . . . . . . . . Heat Transferred 702 | . 37 185 . 320 . . . . 160 Parts Sabotaged . | . . . . . . . . . . Parts Stolen 3 | . . . . . . . . 3 . Parts Stripped . | . . . . . . . . . . Power Chain Reactions . | . . . . . . . . . . Alert | -11 -10 -10 -10 -9 -8 -7 -7 -7 -7 ------- Run | Yrd Mat Min Exi Min Mat Fac Low Low Dat Peak Influence 182 | . 7 76 . 77 182 37 . . . Initial 37 | . . 2 . . 11 37 . . . Average 33 | . 1 19 . 17 57 37 . . . Maximum Alert Level . | . . . . . . . . . . Low Security (%) 100 | 100 100 100 . 100 100 100 . . . Level 1 . | . . . . . . . . . . Level 2 . | . . . . . . . . . . Level 3 . | . . . . . . . . . . Level 4 . | . . . . . . . . . . Level 5 . | . . . . . . . . . . High Security . | . . . . . . . . . . Max Security . | . . . . . . . . . . Squads Dispatched 3 | . . . . 1 . 2 . . . Investigation 1 | . . . . 1 . . . . . Extermination . | . . . . . . . . . . Reinforcement 2 | . . . . . . 2 . . . Assault . | . . . . . . . . . . Garrison . | . . . . . . . . . . Intercept . | . . . . . . . . . . Searches Triggered . | . . . . . . . . . . Construction Impeded . | . . . . . . . . . . Haulers Reinforced . | . . . . . . . . . . Active Scanning Responses . | . . . . . . . . . . Cargo Convoy Interrupts . | . . . . . . . . . . Stealth | -11 -10 -10 -10 -9 -8 -7 -7 -7 -7 --------- Run | Yrd Mat Min Exi Min Mat Fac Low Low Dat Distress Signals 1 | . . . . . 1 . . . . Communications Jammed . | . . . . . . . . . . Distress Signals . | . . . . . . . . . . Times Spotted 51 | . 1 8 . 8 16 1 3 7 7 Peak Tracking Total 5 | . 1 2 . 3 5 1 3 3 4 Tactical Retreats 8 | . . 2 . 2 2 . 1 1 . Traps | -11 -10 -10 -10 -9 -8 -7 -7 -7 -7 ------- Run | Yrd Mat Min Exi Min Mat Fac Low Low Dat Traps Triggered . | . . . . . . . . . . Indirectly . | . . . . . . . . . . Trap Hack Attempts . | . . . . . . . . . . Triggered . | . . . . . . . . . . Disarmed 6 | . . . . . 6 . . . . Reprogrammed . | . . . . . . . . . . Reused 3 | . . . . . . . . . 3 Traps Extracted . | . . . . . . . . . . Installed 5 | . . . . 1 . . . . 4 Triggered . | . . . . . . . . . . Most Traps Carried 4 | . . . . 4 4 4 4 4 4 Machines | -11 -10 -10 -10 -9 -8 -7 -7 -7 -7 ---------- Run | Yrd Mat Min Exi Min Mat Fac Low Low Dat Machines Disabled . | . . . . . . . . . . Max in Single Turn . | . . . . . . . . . . Machines Repaired . | . . . . . . . . . . Machines Dismantled . | . . . . . . . . . . Machines Sabotaged . | . . . . . . . . . . Overloaded Fab Kills . | . . . . . . . . . . Hacking | -11 -10 -10 -10 -9 -8 -7 -7 -7 -7 --------- Run | Yrd Mat Min Exi Min Mat Fac Low Low Dat Machines Accessed 11 | . . . . 1 6 . . . 4 Terminals 5 | . . . . . 5 . . . . Fabricators . | . . . . . . . . . . Repair Stations 1 | . . . . . 1 . . . . Recycling Units . | . . . . . . . . . . Scanalyzers . | . . . . . . . . . . Garrison Access . | . . . . . . . . . . Total Hacks 55 | . . . . 1 24 . . . 30 Successful 47 | . . . . 1 16 . . . 30 Failed 8 | . . . . . 8 . . . . Catastrophic . | . . . . . . . . . . Database Lockouts . | . . . . . . . . . . Manual 15 | . . . 1 1 13 . . . . Terminals 18 | . . . . . 18 . . . . Fabricators . | . . . . . . . . . . Repair Stations 6 | . . . . . 6 . . . . Recycling Units . | . . . . . . . . . . Scanalyzers . | . . . . . . . . . . Garrison Access . | . . . . . . . . . . Terminal Hacks 38 | . . . . 1 7 . . . 30 Record 11 | . . . . . . . . . 11 Part Schematic 12 | . . . . . 1 . . . 11 Robot Schematic 5 | . . . . . . . . . 5 Prototype ID Bank 3 | . . . . . . . . . 3 Open Door 1 | . . . . 1 . . . . . Emergency Access Points 1 | . . . . . 1 . . . . Alert Level 1 | . . . . . 1 . . . . Disarm Traps 1 | . . . . . 1 . . . . Dispatch Records 1 | . . . . . 1 . . . . Maintenance Status 1 | . . . . . 1 . . . . Hauler Manifests 1 | . . . . . 1 . . . . Fabricator Hacks . | . . . . . . . . . . Repair Station Hacks 4 | . . . . . 4 . . . . Scan Component 2 | . . . . . 2 . . . . Repair 2 | . . . . . 2 . . . . Recycling Unit Hacks . | . . . . . . . . . . Scanalyzer . | . . . . . . . . . . Garrison Access Hacks . | . . . . . . . . . . Unauthorized Hacks 5 | . . . . . 5 . . . . Terminals 5 | . . . . . 5 . . . . Botnet 4 | . . . . . 4 . . . . Disrupt 1 | . . . . . 1 . . . . Fabricators . | . . . . . . . . . . Repair Stations . | . . . . . . . . . . Recycling Units . | . . . . . . . . . . Scanalyzers . | . . . . . . . . . . Garrison Access . | . . . . . . . . . . Data Cores Recovered . | . . . . . . . . . . Used . | . . . . . . . . . . Hacking Detections 6 | . . . . . 6 . . . . Full Trace Events . | . . . . . . . . . . Feedback Events . | . . . . . . . . . . Feedback Blocked . | . . . . . . . . . . Robot Schematics Acquired 5 | . . . . . . . . . 5 Robots Built . | . . . . . . . . . . Authchips . | . . . . . . . . . . Time . | . . . . . . . . . . Total Robot Build Rating . | . . . . . . . . . . Part Schematics Acquired 12 | . . . . . 1 . . . 11 Parts Built . | . . . . . . . . . . Authchips . | . . . . . . . . . . Time . | . . . . . . . . . . Total Part Build Rating . | . . . . . . . . . . Parts Repaired 2 | . . . . . 2 . . . . Time 64 | . . . . . 64 . . . . Parts Recycled . | . . . . . . . . . . Recycled Matter . | . . . . . . . . . . Retrieved Matter . | . . . . . . . . . . Retrieved Components . | . . . . . . . . . . Parts Scanalyzed . | . . . . . . . . . . Part Schematics Acquired . | . . . . . . . . . . Parts Damaged . | . . . . . . . . . . Bothacking | -11 -10 -10 -10 -9 -8 -7 -7 -7 -7 ------------ Run | Yrd Mat Min Exi Min Mat Fac Low Low Dat Used RIF Installer . | . . . . . . . . . . Robots Hacked . | . . . . . . . . . . Non-combat . | . . . . . . . . . . Combat . | . . . . . . . . . . Robot Hacks Applied . | . . . . . . . . . . Relay Couplers Released . | . . . . . . . . . . Fabnet Peak Effective % . | . . . . . . . . . . Robots Rewired . | . . . . . . . . . . Allies Hacked . | . . . . . . . . . . Hacks Repelled . | . . . . . . . . . . Allies | -11 -10 -10 -10 -9 -8 -7 -7 -7 -7 -------- Run | Yrd Mat Min Exi Min Mat Fac Low Low Dat Total Allies . | . . . . . . . . . . Largest Group . | . . . . . . . . . . Highest-Rated Group . | . . . . . . . . . . Highest-Rated Ally . | . . . . . . . . . . Total Orders . | . . . . . . . . . . Ally Attacks . | . . . . . . . . . . Total Damage . | . . . . . . . . . . Kills . | . . . . . . . . . . Allies Corrupted . | . . . . . . . . . . Allies Melted . | . . . . . . . . . . Intel | -11 -10 -10 -10 -9 -8 -7 -7 -7 -7 ------- Run | Yrd Mat Min Exi Min Mat Fac Low Low Dat Robot Analysis Total . | . . . . . . . . . . Derelict Logs Recovered 4 | . . 1 . 1 . . . 2 . Drone Launches . | . . . . . . . . . . Drone Recoveries . | . . . . . . . . . . Exploration | -11 -10 -10 -10 -9 -8 -7 -7 -7 -7 ------------- Run | Yrd Mat Min Exi Min Mat Fac Low Low Dat Turns Passed 7620 | 17 161 757 242 1659 1759 211 839 1341 634 Spaces Moved 3283 | 10 97 444 230 639 542 116 413 659 133 Core 1 | . . . . . . . . . 1 Treads 570 | 7 97 444 22 . . . . . . Legs 2600 | 3 . . 97 639 542 116 413 659 131 Wheels 111 | . . . 111 . . . . . . Hover . | . . . . . . . . . . Flight 1 | . . . . . . . . . 1 Fastest Speed 40 | 120 160 160 90 90 100 180 180 176 40 Average Speed 162 | 148 160 160 96 110 176 180 180 192 252 Slowest Speed 540 | 160 160 160 160 170 180 180 180 540 330 Overloaded Moves . | . . . . . . . . . . Propulsion Burnouts . | . . . . . . . . . . Robots Hopped . | . . . . . . . . . . Cave-ins Triggered . | . . . . . . . . . . Exploration Rate (%) 52 | 2 14 78 61 98 44 4 64 82 80 Regions Visited 9 Branch Regions 6 Pre-discovered Areas 1 | . . . . . . . . . 1 Known Exits Taken 7 | . . 1 1 1 1 1 1 1 . Unknown Exits Taken 2 | 1 1 . . . . . . . . Scrap Searched 7 | . . 1 . 2 . . 1 3 . Spaces Dug 14 | . . . . 5 2 . . 3 4 Terrain Destroyed 65 | . . 50 . 6 2 . . 3 4 Melee 14 | . . . . 5 2 . . 3 4 Projectile 1 | . . . . 1 . . . . . AOE 50 | . . 50 . . . . . . . Terrain Rammed . | . . . . . . . . . . Walls Destroyed . | . . . . . . . . . . Machines Disabled . | . . . . . . . . . . Actions | -11 -10 -10 -10 -9 -8 -7 -7 -7 -7 --------- Run | Yrd Mat Min Exi Min Mat Fac Low Low Dat Total 5399 | 13 99 471 252 1577 1248 119 503 700 417 Wait 1850 | . . 2 . 897 613 3 83 . 252 Move 3274 | 9 96 443 229 638 541 115 412 658 133 Hop . | . . . . . . . . . . Pick Up 50 | . 1 5 5 13 20 1 1 4 . Fast Attach 21 | . . 2 4 . 7 . 1 7 . Attach 19 | 2 . 2 4 2 2 . . 1 6 Detach 9 | 2 . . 1 . 1 . . 2 3 Swap 4 | . . 1 . 1 1 . . 1 . Drop 40 | . . 5 9 10 2 . 2 7 5 Fire 39 | . 2 11 . 5 6 . . 12 3 Melee 88 | . . . . 10 55 . 4 8 11 Ram . | . . . . . . . . . . Kick . | . . . . . . . . . . Crush . | . . . . . . . . . . Escape Stasis . | . . . . . . . . . . Rewire . | . . . . . . . . . . Trap 5 | . . . . 1 . . . . 4 Miscellaneous . | . . . . . . . . . . Route ------- -11/Scrapyard -10/Materials -10/Mines (discovered 2 exits: [*Mat] / *Exi) -10/Exiles -9/Mines (discovered 2 exits: *Mat x2) -8/Materials -7/Factory -7/Lower Caves -7/Lower Caves (discovered 2 exits: *Fac / *Dat) -7/Data Miner (discovered 1 exit: *Pro) History --------- Turn | Location | Event 1 | -11/Scrapyard | Discovered new exit (range 1) 18 | -11/Scrapyard | Entered Materials 34 | -10/Materials | Discovered new exit (range 13) 145 | -10/Materials | Met 8R-AWN 179 | -10/Materials | Entered Mines 181 | -10/Mines | Followed 8R-AWN into the Mines 233 | -10/Mines | Assembled infested the area 238 | -10/Mines | Assisted by a Guerilla fighting off Assembled 313 | -10/Mines | Build established: Mutant 517 | -10/Mines | Discovered new exit (range 12) 739 | -10/Mines | Learned Materials non-interactive machine intel 927 | -10/Mines | Discovered new exit (range 5) 935 | -10/Mines | Identified exit to Exiles 936 | -10/Mines | Entered Exiles 986 | -10/Exiles | Welcomed by 8R-AWN 1001 | -10/Exiles | Met EX-HEX 1027 | -10/Exiles | Met EX-BIN 1040 | -10/Exiles | Aligned with FarCom system 1040 | -10/Exiles | Given EX-Vault access code 1064 | -10/Exiles | Opened EX-Vault 1068 | -10/Exiles | Found Prototype Special Weapon 1068 | -10/Exiles | Identified Field Lobotomy Kit 1077 | -10/Exiles | Found Prototype Energy Cannon 1079 | -10/Exiles | Identified Gui. Plasma Cannon 1087 | -10/Exiles | Found Prototype Leg 1087 | -10/Exiles | Identified Potential Leg 1090 | -10/Exiles | Found Potential Leg 1112 | -10/Exiles | Warned to stay clear of 0b10 Research branches 1138 | -10/Exiles | Met EX-DEC 1170 | -10/Exiles | Discovered new exit (range 10) 1177 | -10/Exiles | Identified exit to Mines 1178 | -10/Exiles | Stole three prototypes: Potential Leg, Field Lobotomy Kit, Gui. Plasma Cannon 1178 | -10/Exiles | Entered Mines 1183 | -9/Mines | Met a Derelict shopkeep closing up shop 1183 | -9/Mines | Met a Derelict bent on vengeance 1260 | -9/Mines | Found a damaged Exp. Sensor Array with a note attached 1341 | -9/Mines | Discovered new exit (range 10) 1343 | -9/Mines | Learned Materials security intel 1350 | -9/Mines | Identified exit to Materials 2472 | -9/Mines | Found a hidden stash of uninstalled traps 2777 | -9/Mines | Found Prototype Device 2798 | -9/Mines | Discovered exit to Materials (range 5) 2837 | -9/Mines | Entered Materials 2837 | -8/Materials | Evolved 4 slots: Propulsion x2, Utility x1, Weapon x1 2839 | -8/Materials | Loaded intel: 36 non-interactive machine locations 2976 | -8/Materials | Repaired Huge Storage Unit 3663 | -8/Materials | Repaired Carbon-fiber Leg 4521 | -8/Materials | Discovered new exit (range 15) 4592 | -8/Materials | Identified exit to Factory 4596 | -8/Materials | Entered Factory 4596 | -7/Factory | Evolved 2 slots: Utility x2 4598 | -7/Factory | FarCom data flow suspended 4721 | -7/Factory | Discovered new exit (range 9) 4735 | -7/Factory | Identified exit to Lower Caves 4807 | -7/Factory | Entered Lower Caves 5166 | -7/Lower Caves | Encountered a Warlord checkpoint 5638 | -7/Lower Caves | Discovered new exit (range 3) 5642 | -7/Lower Caves | Identified exit to Lower Caves 5646 | -7/Lower Caves | Entered another Lower Caves area 5674 | -7/Lower Caves | Attracted the attention of an 0b10 checkpoint 5735 | -7/Lower Caves | Lost 3 parts (1p1n1w) 5889 | -7/Lower Caves | Discovered new exit (range 5) 5894 | -7/Lower Caves | Identified exit to Factory 5895 | -7/Lower Caves | Encountered a Warlord checkpoint 5924 | -7/Lower Caves | Learned 4 Factory zone layouts 6022 | -7/Lower Caves | Build established: Derelict-Mutant 6209 | -7/Lower Caves | Spotted B-75 Beast 6623 | -7/Lower Caves | Spotted 2C-1XI(f) 6623 | -7/Lower Caves | Spotted 5N-FVO(f) 6624 | -7/Lower Caves | Encountered a Master Thief 6624 | -7/Lower Caves | Encountered a Master Thief 6627 | -7/Lower Caves | Spotted LB-F8Y(f) 6628 | -7/Lower Caves | Encountered a Master Thief 6630 | -7/Lower Caves | Potential Leg stolen by Master Thief 6632 | -7/Lower Caves | Field Lobotomy Kit stolen by Master Thief 6638 | -7/Lower Caves | Potential Leg stolen by Master Thief 6639 | -7/Lower Caves | Destroyed 2C-1XI(f) 6660 | -7/Lower Caves | Discovered new exit (range 12) 6775 | -7/Lower Caves | Learned Factory trap positions 6854 | -7/Lower Caves | Identified exit to Data Miner 6987 | -7/Lower Caves | Entered Data Miner 6987 | -7/Data Miner | Discovered new exit (range 6) 7005 | -7/Data Miner | Identified exit to Proximity Caves 7031 | -7/Data Miner | Met Data Miner 7092 | -7/Data Miner | Learned location of Section 7 (-2) 7092 | -7/Data Miner | Acquired the access code to Warlord's prototype stash 7140 | -7/Data Miner | Received God Mode back door access code from Data Miner 7603 | -7/Data Miner | Data Conduit disabled 7613 | -7/Data Miner | Core integrity fell below 50% 7620 | -7/Data Miner | Core integrity fell below 20% 7621 | -7/Data Miner | Destroyed by Enhanced Grunt with Neutron Cannon Last Messages --------------- 07598_ Carbon-fiber Leg destroyed. 07601_ Enhanced Grunt triggered Proton Bomb Trap. 07601_ A bubble of electromagnetic force engulfs the area. 07603_ Enhanced Grunt triggered Proton Bomb Trap. 07603_ A bubble of electromagnetic force engulfs the area. 07603_ Imp. Light Armor Plating destroyed. 07603_ Proton Bomb Trap short circuited. 07603_ Data Conduit disabled. 07603_ A bubble of electromagnetic force engulfs the area. 07603_ Flak Cannon destroyed. 07603_ Enhanced Grunt triggered Proton Bomb Trap. 07603_ A bubble of electromagnetic force engulfs the area. 07606_ Imp. Shield Generator destroyed. 07608_ Potential Leg destroyed. 07608_ Nanoactuators destroyed. 07610_ Lgt. Nuclear Core destroyed. 07612_ Spear destroyed. 07619_ Gui. Plasma Cannon destroyed. 07620_ Dropped Huge Storage Unit. 07621_ Nuclear Pulse Thruster destroyed. Map ----- +----------------------------------------------------+ | | | | | | | | | | | | | | | | | | | | | | | | | | | | | | | | | ???????????????????????????????????????????????? | | ???????????????????????????????????????????????? | | ???????????????????????????????????????????????? | | ???????????????????????????????????????????????? | | ???????????????????????????????????####????????? | | ???################??#########???### #????????? | | ??#"""""""""""""""####;# # # #??## #????????? | | ??""""""""" """""" !!g g # ## > ##????????? | | ?"""""""""" *!![g ######???? | | ?""""""" =!!@ #???? | | #""""""" / #???? | | #"""""" #???? | | #""""""" ##???? | | ?""""""" "" """""""""""""#####????? | | ?"""""""" g ""###############????????? | | ??""""""" """""###??????????????????????? | | ??#"""""""" "#####????????????????????????? | | ???#######"## "#????????????????????????????? | | ?????????#"### "#????????????????????????????? | | ?????????#"### "#????????????????????????????? | | ?????????#"## "#????????????????????????????? | | ?????????#"## "#????????????????????????????? | | ??????????"# "#????????????????????????????? | | ???????????### "#????????????????????????????? | | ?????????????# "##???????????????????????????? | | ????????????## ""#???????????????????????????? | | ?????????#?## ""#???????????????????????????? | | ??????#"##"#"X ""#???????????????????????????? | | ??????#"""""" "#####???????????????????????? | | ??????##""""" X"""""#???????????????????????? | | ???????###"#"X "##"##???????????????????????? | | ?????????#"## X""""#????????????????????????? | | ????????????## "##"#????????????????????????? | | ?????????????#######??#????????????????????????? | +----------------------------------------------------+ Best States ------------- Heat Dissipation 34 Energy Generation 14 Energy Capacity 250 Matter Stores 300 Matter Capacity 300 Sight Range 20 Robot Scan Range 14 Terrain Scan Density 10 Armor Coverage 225 Evasion (%) 57 Recoil Reduction 2 Item Schematics ----------------- Hacking Suite | -8/Materials | Hacked Combat Drone Bay | -7/Data Miner | Free Lgt. Regenerative Plating | -7/Data Miner | Free Biomechanical Wings | -7/Data Miner | Free Exp. Power Shielding | -7/Data Miner | Free Cld. Plasma Cannon | -7/Data Miner | Free Cmb. Gravmag System | -7/Data Miner | Free Disruptor Cannon | -7/Data Miner | Free Mic. Fission Core | -7/Data Miner | Free Imp. Kinecellerator | -7/Data Miner | Free Adv. Reaction Control System | -7/Data Miner | Free Lgt. Antimatter Reactor | -7/Data Miner | Free Robot Schematics ------------------ M-22 Extractor | -7/Data Miner | Free A-15 Conveyor | -7/Data Miner | Free W-25 Informer | -7/Data Miner | Free R-10 Processor | -7/Data Miner | Free L-41 Fighter | -7/Data Miner | Free Fabricated ------------ Nothing Alien Tech Used ----------------- None Achievements -------------- None Challenges ------------ None Game ------ Seed UltimateMyomerHammer Manual? 0 Play Time 00:44:04 Cumulative 31.9 hours Start 2024.04.14 @ 20:54:58 End 2024.04.14 @ 22:19:08 Sessions 1 Manual Loads 0 Difficulty Rogue Special Mode None Game No. 46 Rogue 45 Adventurer 1 Explorer 0 Win Type - Total 1 Types 1/0/0/0/0/0/0/0/0 Lore% 23 Gallery% 43 Achievement% 35 Wizard Run 0 Options --------- Layout 0 ASCII 0 Keyboard 0 Movement Numpad Keybinds 0 Fullscreen 1 Font 18/SmallcapsGlow Map View 76x50 Zoom Use 0% Tactical HUD 1 Map Filters NONE Filters NONE Steam 1 RUN: 588b1ae0-f3ab-47c4-9498-bd08d198e0b2